[Event "*** Titled Tuesday 3|2 Blitz"]
[Site "Chess.com"]
[Date "2016.07.05"]
[Round "2"]
[White "Ksenia_Legenko"]
[Black "Rock700chess"]
[Result "0-1"]
[WhiteElo "2073"]
[BlackElo "2216"]
[TimeControl "180+2"]
[EndTime "17:22:14 PDT"]
[Termination "Rock700chess won on time"]

1. d4 {[%clk 0:03:01.9]} 1... Nf6 {[%clk 0:03:01]} 2. c4 {[%clk 0:03:02.3]} 2...
e6 {[%clk 0:03:02.5]} 3. g3 {[%clk 0:03:02.1]} 3... d5 {[%clk 0:03:03.3]} 4. Nf3
{[%clk 0:03:02.2]} 4... Be7 {[%clk 0:03:04.2]} 5. Bg2 {[%clk 0:03:03]} 5... O-O
{[%clk 0:03:05.8]} 6. O-O {[%clk 0:03:03.9]} 6... dxc4 {[%clk 0:03:07.5]} 7. Qc2
{[%clk 0:03:03.3]} 7... a6 {[%clk 0:03:08.7]} 8. a4 {[%clk 0:03:03.5]} 8... Bd7
{[%clk 0:03:09.8]} 9. Ne5 {[%clk 0:02:58.8]} 9... Bc6 {[%clk 0:02:55.8]} 10.
Nxc6 {[%clk 0:02:58.5]} 10... Nxc6 {[%clk 0:02:55.6]} 11. e3 {[%clk 0:02:57.8]}
11... Na5 {[%clk 0:02:55.2]} 12. Nd2 {[%clk 0:02:53.9]} 12... c5 {[%clk
0:02:56.4]} 13. dxc5 {[%clk 0:02:51.1]} 13... Rc8 {[%clk 0:02:57.6]} 14. b3
{[%clk 0:02:35.5]} 14... cxb3 {[%clk 0:02:59.5]} 15. Nxb3 {[%clk 0:02:32.4]}
15... Nxb3 {[%clk 0:03:01.4]} 16. Qxb3 {[%clk 0:02:33.5]} 16... Nd7 {[%clk
0:03:02.9]} 17. Qxb7 {[%clk 0:02:28.4]} 17... Nxc5 {[%clk 0:02:55.5]} 18. Qf3
{[%clk 0:02:23.5]} 18... Bf6 {[%clk 0:02:44.6]} 19. Ra2 {[%clk 0:02:24]} 19...
Qd3 {[%clk 0:02:37.8]} 20. Ba3 {[%clk 0:02:06.7]} 20... Qb3 {[%clk 0:02:17.9]}
21. Qe2 {[%clk 0:02:00.4]} 21... Rfd8 {[%clk 0:02:05.5]} 22. Bxc5 {[%clk
0:01:34.8]} 22... Rxc5 {[%clk 0:02:05]} 23. a5 {[%clk 0:01:35.3]} 23... g6
{[%clk 0:01:34.2]} 24. h4 {[%clk 0:01:11.5]} 24... Kg7 {[%clk 0:01:34.4]} 25.
Be4 {[%clk 0:00:53.3]} 25... Rd6 {[%clk 0:00:56.7]} 26. Bb1 {[%clk 0:00:19.3]}
26... Bc3 {[%clk 0:00:43.4]} 27. Qc2 {[%clk 0:00:07.9]} 27... Qb4 {[%clk
0:00:34.1]} 28. Qa4 {[%clk 0:00:04.3]} 28... Qb7 {[%clk 0:00:27]} 29. Be4 {[%clk
0:00:02.6]} 29... Qc7 {[%clk 0:00:23.7]} 0-1

[Event "*** Titled Tuesday 3|2 Blitz"]
[Site "Chess.com"]
[Date "2016.07.05"]
[Round "2"]
[White "ChrisTool2"]
[Black "chessking2151"]
[Result "0-1"]
[WhiteElo "2302"]
[BlackElo "2346"]
[TimeControl "180+2"]
[EndTime "17:22:20 PDT"]
[Termination "chessking2151 won by resignation"]

1. d4 {[%clk 0:03:01.9]} 1... Nf6 {[%clk 0:03:00.9]} 2. c4 {[%clk 0:03:02.2]}
2... c5 {[%clk 0:03:01.9]} 3. e3 {[%clk 0:03:00.3]} 3... g6 {[%clk 0:02:58.8]}
4. Nf3 {[%clk 0:03:00.5]} 4... Bg7 {[%clk 0:02:57.2]} 5. Nc3 {[%clk 0:03:02.4]}
5... O-O {[%clk 0:02:58]} 6. Be2 {[%clk 0:03:01.1]} 6... d6 {[%clk 0:02:59]} 7.
O-O {[%clk 0:03:01.5]} 7... Nbd7 {[%clk 0:03:00.1]} 8. b3 {[%clk 0:03:02.9]}
8... e5 {[%clk 0:03:00.8]} 9. dxc5 {[%clk 0:03:02.4]} 9... dxc5 {[%clk
0:02:59.4]} 10. Bb2 {[%clk 0:03:01.3]} 10... Re8 {[%clk 0:03:00.4]} 11. Qd6
{[%clk 0:02:45.9]} 11... Qe7 {[%clk 0:02:59.7]} 12. Rad1 {[%clk 0:02:44.4]}
12... Qxd6 {[%clk 0:02:55.5]} 13. Rxd6 {[%clk 0:02:45.2]} 13... Kf8 {[%clk
0:02:57.1]} 14. Rfd1 {[%clk 0:02:44.5]} 14... Kg8 {[%clk 0:02:53.9]} 15. Nb5
{[%clk 0:02:42.8]} 15... Re7 {[%clk 0:02:50.7]} 16. h3 {[%clk 0:02:00.5]} 16...
Ne8 {[%clk 0:02:50.2]} 17. R6d2 {[%clk 0:01:55]} 17... Nf8 {[%clk 0:02:37.2]}
18. Ng5 {[%clk 0:01:44.9]} 18... f5 {[%clk 0:02:30.3]} 19. Nd6 {[%clk 0:01:21]}
19... h6 {[%clk 0:02:22.9]} 20. Nf3 {[%clk 0:01:17.8]} 20... e4 {[%clk
0:02:22.5]} 21. Nxc8 {[%clk 0:01:01.3]} 21... Rxc8 {[%clk 0:02:22.1]} 22. Nh4
{[%clk 0:00:58.2]} 22... Bxb2 {[%clk 0:02:20]} 23. Rxb2 {[%clk 0:00:58.9]} 23...
Kg7 {[%clk 0:02:18.8]} 24. Rbd2 {[%clk 0:00:59.3]} 24... Kf6 {[%clk 0:02:19.4]}
25. g3 {[%clk 0:01:00.4]} 25... g5 {[%clk 0:02:20.7]} 26. Ng2 {[%clk 0:01:01.6]}
26... Ne6 {[%clk 0:02:22.3]} 27. Rd7 {[%clk 0:01:00]} 27... Rxd7 {[%clk
0:02:10.2]} 28. Rxd7 {[%clk 0:00:54]} 28... Rc7 {[%clk 0:02:11.3]} 29. Rd5
{[%clk 0:00:48.2]} 29... b6 {[%clk 0:02:08.8]} 30. Kf1 {[%clk 0:00:45]} 30...
Re7 {[%clk 0:02:06.9]} 31. h4 {[%clk 0:00:44.2]} 31... N6c7 {[%clk 0:02:08]} 32.
Rd8 {[%clk 0:00:41.3]} 32... Ke6 {[%clk 0:02:06.7]} 33. g4 {[%clk 0:00:38.2]}
33... a6 {[%clk 0:01:57.2]} 34. gxf5+ {[%clk 0:00:38.3]} 34... Kxf5 {[%clk
0:01:58]} 35. Kg1 {[%clk 0:00:38.3]} 35... Ne6 {[%clk 0:01:55.4]} 36. Rb8 {[%clk
0:00:38.1]} 36... Nf6 {[%clk 0:01:49.2]} 37. Rxb6 {[%clk 0:00:37.9]} 37... Rd7
{[%clk 0:01:50.6]} 38. hxg5 {[%clk 0:00:33.9]} 38... hxg5 {[%clk 0:01:52.5]} 39.
Kh2 {[%clk 0:00:32.2]} 39... Rd2 {[%clk 0:01:53.5]} 40. Bf1 {[%clk 0:00:25.8]}
40... Rxf2 {[%clk 0:01:54.4]} 41. Kg1 {[%clk 0:00:27.4]} 41... Rxa2 {[%clk
0:01:55.7]} 42. Ne1 {[%clk 0:00:24.4]} 42... g4 {[%clk 0:01:55.5]} 43. Ng2
{[%clk 0:00:25.2]} 43... Nd7 {[%clk 0:01:41.4]} 44. Rd6 {[%clk 0:00:24]} 44...
Ne5 {[%clk 0:01:41.5]} 45. Rd5 {[%clk 0:00:22.5]} 45... Kf6 {[%clk 0:01:41.4]}
46. Nh4 {[%clk 0:00:17.7]} 46... Nf3+ {[%clk 0:01:39.9]} 47. Nxf3 {[%clk
0:00:18.3]} 47... exf3 {[%clk 0:01:41.8]} 48. e4 {[%clk 0:00:18.1]} 48... g3
{[%clk 0:01:42.7]} 49. Rd3 {[%clk 0:00:18.7]} 49... f2+ {[%clk 0:01:34.3]} 50.
Kh1 {[%clk 0:00:17.6]} 50... g2+ {[%clk 0:01:35.8]} 51. Bxg2 {[%clk 0:00:18.5]}
51... Ra1+ {[%clk 0:01:37.1]} 52. Kh2 {[%clk 0:00:19]} 52... f1=Q {[%clk
0:01:36.6]} 53. Bxf1 {[%clk 0:00:20.1]} 53... Rxf1 {[%clk 0:01:38.5]} 54. Rd6
{[%clk 0:00:21]} 54... Ke5 {[%clk 0:01:37.8]} 55. Rxa6 {[%clk 0:00:22.1]} 55...
Rb1 {[%clk 0:01:39.2]} 56. Rb6 {[%clk 0:00:22.9]} 56... Nd4 {[%clk 0:01:38.5]}
57. Kg3 {[%clk 0:00:20.6]} 57... Rxb3+ {[%clk 0:01:39.6]} 58. Rxb3 {[%clk
0:00:18.2]} 58... Nxb3 {[%clk 0:01:41.5]} 59. Kf3 {[%clk 0:00:19.7]} 59... Na5
{[%clk 0:01:41.3]} 60. Ke3 {[%clk 0:00:20.5]} 60... Nxc4+ {[%clk 0:01:43.2]} 61.
Kd3 {[%clk 0:00:21.8]} 61... Nd6 {[%clk 0:01:45.1]} 62. Kc3 {[%clk 0:00:23.1]}
62... Kxe4 {[%clk 0:01:46.1]} 63. Kc2 {[%clk 0:00:24.1]} 63... Kd5 {[%clk
0:01:48]} 0-1

[Event "*** Titled Tuesday 3|2 Blitz"]
[Site "Chess.com"]
[Date "2016.07.05"]
[Round "2"]
[White "Cayse"]
[Black "dretch"]
[Result "0-1"]
[WhiteElo "2574"]
[BlackElo "2632"]
[TimeControl "180+2"]
[EndTime "17:22:55 PDT"]
[Termination "dretch won on time"]

1. e4 {[%clk 0:03:00]} 1... e6 {[%clk 0:03:01]} 2. d4 {[%clk 0:03:00.3]} 2... d5
{[%clk 0:03:02.9]} 3. Nc3 {[%clk 0:03:01.4]} 3... Nf6 {[%clk 0:03:03.9]} 4. e5
{[%clk 0:03:02.6]} 4... Nfd7 {[%clk 0:03:05.3]} 5. f4 {[%clk 0:03:04]} 5... c5
{[%clk 0:03:07]} 6. Nf3 {[%clk 0:03:05.2]} 6... Nc6 {[%clk 0:03:08.9]} 7. Be3
{[%clk 0:03:05.8]} 7... cxd4 {[%clk 0:03:10.8]} 8. Nxd4 {[%clk 0:03:06.4]} 8...
Bc5 {[%clk 0:03:12.7]} 9. Qd2 {[%clk 0:03:05.7]} 9... O-O {[%clk 0:03:13.5]} 10.
O-O-O {[%clk 0:03:03.1]} 10... a6 {[%clk 0:03:14.7]} 11. h4 {[%clk 0:03:00.7]}
11... Nxd4 {[%clk 0:03:15.4]} 12. Bxd4 {[%clk 0:03:01.4]} 12... b5 {[%clk
0:03:17.3]} 13. Qf2 {[%clk 0:03:00.8]} 13... Qc7 {[%clk 0:03:13.9]} 14. h5
{[%clk 0:02:59.8]} 14... b4 {[%clk 0:03:13.7]} 15. Ne2 {[%clk 0:02:52.5]} 15...
a5 {[%clk 0:03:13.2]} 16. h6 {[%clk 0:02:47.3]} 16... g6 {[%clk 0:03:13]} 17.
Bxc5 {[%clk 0:02:46.6]} 17... Nxc5 {[%clk 0:03:13.4]} 18. Nd4 {[%clk 0:02:47.5]}
18... a4 {[%clk 0:03:06.7]} 19. Qh4 {[%clk 0:02:46.8]} 19... Ne4 {[%clk
0:02:56.5]} 20. Bd3 {[%clk 0:02:38.5]} 20... a3 {[%clk 0:01:38.6]} 21. Bxe4
{[%clk 0:01:57.6]} 21... axb2+ {[%clk 0:01:37.7]} 22. Kxb2 {[%clk 0:01:18.2]}
22... f6 {[%clk 0:00:19.3]} 23. Bd3 {[%clk 0:00:55.9]} 23... Qc3+ {[%clk
0:00:16.7]} 24. Kb1 {[%clk 0:00:56.3]} 24... Qxd4 {[%clk 0:00:16.7]} 25. Bxg6
{[%clk 0:00:29.2]} 25... Qa7 {[%clk 0:00:17.3]} 26. Bd3 {[%clk 0:00:25.6]} 26...
Kh8 {[%clk 0:00:11.3]} 27. Kc1 {[%clk 0:00:17.1]} 27... Qe3+ {[%clk 0:00:08.7]}
28. Kb1 {[%clk 0:00:17.2]} 28... Ba6 {[%clk 0:00:04]} 29. exf6 {[%clk
0:00:11.9]} 29... Bxd3 {[%clk 0:00:04.3]} 30. Rxd3 {[%clk 0:00:13]} 30... Qa7
{[%clk 0:00:05.6]} 31. Kc1 {[%clk 0:00:14]} 31... Qxa2 {[%clk 0:00:05.9]} 32.
Kd2 {[%clk 0:00:14.5]} 32... Rac8 {[%clk 0:00:05.8]} 33. Rc1 {[%clk 0:00:15.3]}
33... Qb2 {[%clk 0:00:06.9]} 34. Qg5 {[%clk 0:00:10.5]} 34... Rg8 {[%clk
0:00:08.2]} 35. Qe5 {[%clk 0:00:03.6]} 35... Rxg2+ {[%clk 0:00:09.1]} 36. Ke3
{[%clk 0:00:05.2]} 36... Rg3+ {[%clk 0:00:09.4]} 37. Kf2 {[%clk 0:00:06.2]}
37... Qxe5 {[%clk 0:00:09.9]} 38. fxe5 {[%clk 0:00:03.6]} 38... Rxd3 {[%clk
0:00:11.1]} 39. f7 {[%clk 0:00:03.3]} 39... Rd4 {[%clk 0:00:11.3]} 40. Ke3
{[%clk 0:00:03.5]} 40... Re4+ {[%clk 0:00:12.5]} 41. Kd3 {[%clk 0:00:05.1]}
41... Rf8 {[%clk 0:00:14.2]} 42. Rf1 {[%clk 0:00:04.4]} 42... Rxe5 {[%clk
0:00:15.7]} 0-1

[Event "*** Titled Tuesday 3|2 Blitz"]
[Site "Chess.com"]
[Date "2016.07.05"]
[Round "2"]
[White "pKiLz5Rn9b"]
[Black "aripov96"]
[Result "0-1"]
[WhiteElo "2412"]
[BlackElo "2284"]
[TimeControl "180+2"]
[EndTime "17:23:00 PDT"]
[Termination "aripov96 won by resignation"]

1. e4 {[%clk 0:03:01.9]} 1... c5 {[%clk 0:03:01]} 2. c3 {[%clk 0:03:03]} 2... g6
{[%clk 0:03:01]} 3. d4 {[%clk 0:03:03.8]} 3... cxd4 {[%clk 0:03:02.8]} 4. cxd4
{[%clk 0:03:05.7]} 4... d5 {[%clk 0:03:04]} 5. e5 {[%clk 0:03:06.8]} 5... Bg7
{[%clk 0:03:04.8]} 6. Nc3 {[%clk 0:03:08.2]} 6... Nc6 {[%clk 0:03:05.8]} 7. h3
{[%clk 0:03:09.1]} 7... Nh6 {[%clk 0:03:06.1]} 8. g4 {[%clk 0:03:10.5]} 8... O-O
{[%clk 0:03:06.1]} 9. Bg2 {[%clk 0:03:11.6]} 9... e6 {[%clk 0:03:05.7]} 10. Nf3
{[%clk 0:03:09]} 10... Kh8 {[%clk 0:02:58.2]} 11. Bg5 {[%clk 0:03:03.4]} 11...
Qb6 {[%clk 0:02:56.1]} 12. Qd2 {[%clk 0:03:03.8]} 12... Ng8 {[%clk 0:02:56.4]}
13. h4 {[%clk 0:02:48]} 13... h6 {[%clk 0:02:54.2]} 14. Be3 {[%clk 0:02:48.6]}
14... f6 {[%clk 0:02:53.5]} 15. exf6 {[%clk 0:02:48.1]} 15... Rxf6 {[%clk
0:02:50.6]} 16. Ne5 {[%clk 0:02:48.7]} 16... Kh7 {[%clk 0:02:34.4]} 17. g5
{[%clk 0:02:46.4]} 17... Rf5 {[%clk 0:02:35.5]} 18. h5 {[%clk 0:02:46.3]} 18...
Bxe5 {[%clk 0:02:28]} 19. dxe5 {[%clk 0:02:42.8]} 19... d4 {[%clk 0:02:28.8]}
20. hxg6+ {[%clk 0:02:28.8]} 20... Kxg6 {[%clk 0:02:24.9]} 21. Bxc6 {[%clk
0:01:50.7]} 21... dxe3 {[%clk 0:02:23.1]} 22. Be8+ {[%clk 0:01:48.1]} 22... Kh7
{[%clk 0:02:17.8]} 23. g6+ {[%clk 0:01:33.4]} 23... Kg7 {[%clk 0:02:17.9]} 24.
Qxe3 {[%clk 0:01:33.2]} 24... Qxe3+ {[%clk 0:02:06.9]} 25. fxe3 {[%clk 0:01:33]}
25... Rxe5 {[%clk 0:02:08.5]} 26. O-O-O {[%clk 0:01:29.9]} 26... Nf6 {[%clk
0:02:07.3]} 27. Bf7 {[%clk 0:01:29.8]} 27... Bd7 {[%clk 0:02:04.9]} 28. Rh3
{[%clk 0:01:19.4]} 28... Be8 {[%clk 0:01:59.7]} 29. Rg1 {[%clk 0:01:06.9]} 29...
h5 {[%clk 0:01:33.6]} 30. Rf3 {[%clk 0:00:50.7]} 30... Bxf7 {[%clk 0:01:22.2]}
31. gxf7+ {[%clk 0:00:51.6]} 31... Kxf7 {[%clk 0:01:24.1]} 32. e4 {[%clk
0:00:45.6]} 32... Rh8 {[%clk 0:01:16.5]} 33. Kd2 {[%clk 0:00:37.4]} 33... h4
{[%clk 0:01:16.9]} 34. Ke3 {[%clk 0:00:37.3]} 34... h3 {[%clk 0:01:14.4]} 35.
Rh1 {[%clk 0:00:38.4]} 35... h2 {[%clk 0:01:14.3]} 36. Kd4 {[%clk 0:00:30.9]}
36... Rg5 {[%clk 0:01:04.9]} 37. Rff1 {[%clk 0:00:29]} 37... Ke7 {[%clk
0:01:00.7]} 38. Rf2 {[%clk 0:00:25.1]} 38... e5+ {[%clk 0:00:44.8]} 39. Kc4
{[%clk 0:00:24.3]} 39... Rgh5 {[%clk 0:00:35]} 40. Rg2 {[%clk 0:00:22.1]} 40...
Ke6 {[%clk 0:00:34.2]} 41. Rg6 {[%clk 0:00:21.6]} 41... R8h6 {[%clk 0:00:34.1]}
42. Rg2 {[%clk 0:00:22.3]} 42... Rh4 {[%clk 0:00:34.1]} 43. Kd3 {[%clk
0:00:23.4]} 43... Rh3+ {[%clk 0:00:34.8]} 44. Kc4 {[%clk 0:00:23.9]} 44... R6h4
{[%clk 0:00:35.4]} 45. Re2 {[%clk 0:00:24.9]} 45... Nh5 {[%clk 0:00:35.7]} 46.
Rd2 {[%clk 0:00:19.3]} 46... Ng3 {[%clk 0:00:36.7]} 47. Rhd1 {[%clk 0:00:17.8]}
47... Nxe4 {[%clk 0:00:34.7]} 48. Nxe4 {[%clk 0:00:13.7]} 48... Rxe4+ {[%clk
0:00:36.6]} 49. Kc5 {[%clk 0:00:15.2]} 49... h1=Q {[%clk 0:00:34.6]} 50. Rd6+
{[%clk 0:00:15.2]} 50... Kf5 {[%clk 0:00:35.7]} 0-1

[Event "*** Titled Tuesday 3|2 Blitz"]
[Site "Chess.com"]
[Date "2016.07.05"]
[Round "2"]
[White "FairChess_on_YouTube"]
[Black "SavelijTartakover"]
[Result "1-0"]
[WhiteElo "2734"]
[BlackElo "2516"]
[TimeControl "180+2"]
[EndTime "17:23:09 PDT"]
[Termination "FairChess_on_YouTube won by resignation"]

1. e4 {[%clk 0:03:01.9]} 1... c5 {[%clk 0:02:59.3]} 2. Nf3 {[%clk 0:03:02.4]}
2... d6 {[%clk 0:02:58.7]} 3. c3 {[%clk 0:03:02.9]} 3... Nf6 {[%clk 0:02:58.7]}
4. h3 {[%clk 0:03:04.4]} 4... Nc6 {[%clk 0:02:54.5]} 5. Bd3 {[%clk 0:03:05.4]}
5... d5 {[%clk 0:02:55]} 6. e5 {[%clk 0:03:06.5]} 6... Nd7 {[%clk 0:02:55.7]} 7.
Bb5 {[%clk 0:03:07.4]} 7... e6 {[%clk 0:02:54.9]} 8. d4 {[%clk 0:03:05.3]} 8...
Qb6 {[%clk 0:02:53]} 9. Ba4 {[%clk 0:02:59.1]} 9... Be7 {[%clk 0:02:51.2]} 10.
O-O {[%clk 0:02:58.9]} 10... O-O {[%clk 0:02:51.4]} 11. a3 {[%clk 0:02:57.4]}
11... a5 {[%clk 0:02:47.9]} 12. Bc2 {[%clk 0:02:54.3]} 12... Rd8 {[%clk
0:02:38.5]} 13. Qd3 {[%clk 0:02:48.4]} 13... Nf8 {[%clk 0:02:38.7]} 14. h4
{[%clk 0:02:46.4]} 14... h6 {[%clk 0:02:32.8]} 15. h5 {[%clk 0:02:44.4]} 15...
Bd7 {[%clk 0:02:31.6]} 16. b3 {[%clk 0:02:40.4]} 16... Na7 {[%clk 0:02:21.6]}
17. Qd1 {[%clk 0:02:20.9]} 17... cxd4 {[%clk 0:02:10.6]} 18. Nxd4 {[%clk
0:02:15.1]} 18... Nc6 {[%clk 0:02:08.3]} 19. Qg4 {[%clk 0:01:54.8]} 19... Kh8
{[%clk 0:01:47.1]} 20. Nxc6 {[%clk 0:01:29]} 20... bxc6 {[%clk 0:01:38.6]} 21.
Nd2 {[%clk 0:01:27.9]} 21... c5 {[%clk 0:01:35.2]} 22. Nf3 {[%clk 0:01:28.1]}
22... a4 {[%clk 0:01:34.3]} 23. b4 {[%clk 0:01:23.7]} 23... Bb5 {[%clk
0:01:28.2]} 24. Re1 {[%clk 0:01:21]} 24... Rdc8 {[%clk 0:01:18.2]} 25. Be3
{[%clk 0:01:17.6]} 25... Qc7 {[%clk 0:01:17.7]} 26. Bxc5 {[%clk 0:01:10.1]}
26... Bxc5 {[%clk 0:01:16.4]} 27. bxc5 {[%clk 0:01:12]} 27... Qxc5 {[%clk
0:01:17.3]} 28. Re3 {[%clk 0:01:12.9]} 28... Nd7 {[%clk 0:01:02.9]} 29. Nd4
{[%clk 0:01:00.9]} 29... Bc4 {[%clk 0:00:59]} 30. Rg3 {[%clk 0:00:53.5]} 30...
Qf8 {[%clk 0:00:59.4]} 31. Qf4 {[%clk 0:00:45.2]} 31... Nc5 {[%clk 0:00:58.1]}
32. Re1 {[%clk 0:00:31.8]} 32... Rab8 {[%clk 0:00:55.6]} 33. Ree3 {[%clk
0:00:30.5]} 33... Rb2 {[%clk 0:00:46.8]} 34. Rxg7 {[%clk 0:00:29.4]} 34... Qxg7
{[%clk 0:00:37.8]} 35. Rg3 {[%clk 0:00:31]} 35... Ne4 {[%clk 0:00:17]} 36. Rxg7
{[%clk 0:00:31.1]} 36... Kxg7 {[%clk 0:00:18.5]} 37. Bxe4 {[%clk 0:00:30.2]}
37... dxe4 {[%clk 0:00:18.7]} 38. Qf6+ {[%clk 0:00:27.3]} 38... Kg8 {[%clk
0:00:18.4]} 39. Qxh6 {[%clk 0:00:26.1]} 39... Bd3 {[%clk 0:00:10.7]} 40. Qg5+
{[%clk 0:00:25.6]} 40... Kh7 {[%clk 0:00:08.6]} 41. Qf6 {[%clk 0:00:24.4]} 41...
Rg8 {[%clk 0:00:07.3]} 42. Qxf7+ {[%clk 0:00:17.7]} 42... Rg7 {[%clk 0:00:08.3]}
43. Qf4 {[%clk 0:00:19.1]} 43... e3 {[%clk 0:00:04.5]} 44. Qxe3 {[%clk
0:00:19.5]} 44... Bb1 {[%clk 0:00:02.5]} 45. Nxe6 {[%clk 0:00:19.6]} 1-0

[Event "*** Titled Tuesday 3|2 Blitz"]
[Site "Chess.com"]
[Date "2016.07.05"]
[Round "2"]
[White "Evgeny_Levin"]
[Black "LaStreetCmaMaison"]
[Result "0-1"]
[WhiteElo "2643"]
[BlackElo "2477"]
[TimeControl "180+2"]
[EndTime "17:23:41 PDT"]
[Termination "LaStreetCmaMaison won by resignation"]

1. d4 {[%clk 0:02:57.3]} 1... b6 {[%clk 0:02:57.8]} 2. Nf3 {[%clk 0:02:57.4]}
2... Bb7 {[%clk 0:02:58.3]} 3. g3 {[%clk 0:02:56.8]} 3... Nf6 {[%clk 0:02:57.8]}
4. Bg2 {[%clk 0:02:58]} 4... g6 {[%clk 0:02:58]} 5. O-O {[%clk 0:02:58.7]} 5...
Bg7 {[%clk 0:02:59.2]} 6. c4 {[%clk 0:02:59.8]} 6... O-O {[%clk 0:02:59.2]} 7.
Nc3 {[%clk 0:03:01.3]} 7... Ne4 {[%clk 0:02:59]} 8. Nxe4 {[%clk 0:02:50.8]} 8...
Bxe4 {[%clk 0:03:00.9]} 9. Be3 {[%clk 0:02:51.6]} 9... c5 {[%clk 0:02:37.7]} 10.
Qd2 {[%clk 0:02:44.5]} 10... d6 {[%clk 0:02:19.7]} 11. d5 {[%clk 0:02:29.1]}
11... Na6 {[%clk 0:02:08.3]} 12. Bh3 {[%clk 0:02:26.8]} 12... Bxf3 {[%clk
0:02:06.2]} 13. exf3 {[%clk 0:02:28.7]} 13... Nc7 {[%clk 0:02:03.1]} 14. Rac1
{[%clk 0:02:16.5]} 14... a6 {[%clk 0:01:54.6]} 15. b4 {[%clk 0:02:13.4]} 15...
Rb8 {[%clk 0:01:34]} 16. Rfe1 {[%clk 0:02:13.1]} 16... cxb4 {[%clk 0:01:17.9]}
17. Qxb4 {[%clk 0:02:15]} 17... b5 {[%clk 0:01:19.3]} 18. Bg5 {[%clk 0:02:05.5]}
18... Re8 {[%clk 0:01:18.5]} 19. a4 {[%clk 0:02:03.5]} 19... a5 {[%clk
0:01:15.3]} 20. Qxa5 {[%clk 0:02:03.2]} 20... Ra8 {[%clk 0:01:16.4]} 21. Qb4
{[%clk 0:01:55.3]} 21... bxa4 {[%clk 0:01:08.7]} 22. Re3 {[%clk 0:01:45.4]}
22... h6 {[%clk 0:01:06.4]} 23. Bf4 {[%clk 0:01:23.1]} 23... g5 {[%clk
0:01:07.3]} 24. Ra3 {[%clk 0:01:21]} 24... gxf4 {[%clk 0:01:07.5]} 25. gxf4
{[%clk 0:01:22.8]} 25... Qb8 {[%clk 0:01:00.7]} 26. Rxa4 {[%clk 0:01:16.2]}
26... Qxb4 {[%clk 0:00:58.6]} 27. Rxb4 {[%clk 0:01:16.5]} 27... Reb8 {[%clk
0:00:59.4]} 28. Rcb1 {[%clk 0:01:13.4]} 28... Na6 {[%clk 0:00:54.3]} 29. Rb7
{[%clk 0:01:11.5]} 29... Rxb7 {[%clk 0:00:52.7]} 30. Rxb7 {[%clk 0:01:13.4]}
30... Bf6 {[%clk 0:00:53.4]} 31. Bf5 {[%clk 0:01:11.8]} 31... Nc5 {[%clk
0:00:54.2]} 32. Rb1 {[%clk 0:01:10.1]} 32... Kg7 {[%clk 0:00:53]} 33. Kg2 {[%clk
0:01:11.1]} 33... Ra4 {[%clk 0:00:52.5]} 34. Rc1 {[%clk 0:01:10.9]} 34... Ra2
{[%clk 0:00:52.7]} 35. Kg3 {[%clk 0:01:09]} 35... Bd4 {[%clk 0:00:53.2]} 36. Rf1
{[%clk 0:01:09.5]} 36... Kf6 {[%clk 0:00:53.3]} 37. Bb1 {[%clk 0:01:08.9]} 37...
Ra4 {[%clk 0:00:53]} 38. Rc1 {[%clk 0:01:09]} 38... Nb3 {[%clk 0:00:48.1]} 39.
Rd1 {[%clk 0:01:10.4]} 39... Bc5 {[%clk 0:00:41.8]} 40. Bc2 {[%clk 0:01:09.1]}
40... Ra3 {[%clk 0:00:40.4]} 41. Rd3 {[%clk 0:00:51.2]} 41... Nd4 {[%clk
0:00:39.5]} 42. Rxa3 {[%clk 0:00:50.5]} 42... Bxa3 {[%clk 0:00:41.4]} 43. Bd3
{[%clk 0:00:50.3]} 43... Bc1 {[%clk 0:00:40.2]} 44. Kg4 {[%clk 0:00:51]} 44...
Bd2 {[%clk 0:00:38.9]} 45. Kg3 {[%clk 0:00:50.7]} 45... Be1 {[%clk 0:00:39.5]}
46. Kg2 {[%clk 0:00:50.5]} 46... Nf5 {[%clk 0:00:36.5]} 47. Be4 {[%clk 0:00:51]}
47... Bd2 {[%clk 0:00:36.6]} 48. Kh3 {[%clk 0:00:50.4]} 48... h5 {[%clk
0:00:36.8]} 49. Kg2 {[%clk 0:00:46.1]} 49... Bxf4 {[%clk 0:00:37.6]} 50. h3
{[%clk 0:00:47.1]} 50... Ke5 {[%clk 0:00:37.1]} 51. Kf1 {[%clk 0:00:48.4]} 51...
Nd4 {[%clk 0:00:34.6]} 52. Kg2 {[%clk 0:00:48.9]} 52... Nb3 {[%clk 0:00:36]} 53.
Bh7 {[%clk 0:00:48.2]} 53... Nd2 {[%clk 0:00:36.5]} 54. Bg8 {[%clk 0:00:41]}
54... Kf6 {[%clk 0:00:36.2]} 55. Bh7 {[%clk 0:00:42.1]} 55... Nxc4 {[%clk
0:00:35.6]} 56. Bd3 {[%clk 0:00:43.1]} 56... Nd2 {[%clk 0:00:34.6]} 57. Ba6
{[%clk 0:00:42.7]} 57... h4 {[%clk 0:00:35.5]} 58. Bc8 {[%clk 0:00:43.3]} 58...
Ke5 {[%clk 0:00:36.3]} 59. Bb7 {[%clk 0:00:43.5]} 59... Nb1 {[%clk 0:00:34.1]}
60. Bc6 {[%clk 0:00:44.4]} 60... Nc3 {[%clk 0:00:35.2]} 61. Be8 {[%clk
0:00:44.6]} 61... f6 {[%clk 0:00:35.3]} 62. Bf7 {[%clk 0:00:45.6]} 62... Nxd5
{[%clk 0:00:35.9]} 63. Kf1 {[%clk 0:00:46.4]} 63... Nc3 {[%clk 0:00:34.6]} 64.
Ke1 {[%clk 0:00:47.2]} 64... d5 {[%clk 0:00:35.6]} 65. Kf1 {[%clk 0:00:47.8]}
65... e6 {[%clk 0:00:35.6]} 66. Be8 {[%clk 0:00:48.1]} 66... d4 {[%clk
0:00:34.5]} 67. Ke1 {[%clk 0:00:48.7]} 67... d3 {[%clk 0:00:34.7]} 0-1